bitfinex/quotes_SOLUSD_20240601
["timestamp","ask_amount","ask_price","bid_price","bid_amount"]
[1717216080191,2.215,167.04,167.03,5.52]
[1717216082675,2.2149,167.05,167.03,5.52]
[1717216082870,2.2149,167.05,167.04,5.52]
[1717216086403,2.2148,167.06,167.04,5.52]
[1717216086698,2.2151,167.04,166.98,21.9023]
[1717216087003,4.429,167.08,166.98,21.9023]
[1717216087004,4.429,167.08,167.03,5.52]
[1717216087201,4.429,167.08,167.05,5.52]
[1717216087700,4.4293,167.07,166.98,21.9023]
[1717216087995,2.2152,167.03,166.99,6.3449]
[1717216088207,2.2152,167.03,167.02,5.52]
[1717216089480,2.2152,167.03,166.99,6.3449]
[1717216089682,2.2152,167.03,167.02,5.52]
[1717216101707,15.4997,167.1,167.02,5.52]
[1717216101918,15.4997,167.1,166.99,6.4993]
[1717216101919,2.215,167.04,166.99,6.4993]
[1717216102128,2.215,167.04,167.03,5.52]
[1717216110938,2.2153,167.02,166.97,22.6135]
[1717216111237,2.2153,167.02,167.01,5.52]
[1717216112047,2.2151,167.03,167.01,5.52]
[1717216113335,2.2151,167.03,166.98,22.6135]
[1717216113525,2.2151,167.03,167.02,5.52]
[1717216113913,2.2151,167.03,167.0,6.4993]
[1717216114324,2.2151,167.03,167.02,5.52]
[1717216115044,2.2151,167.03,167.0,6.4993]
[1717216115255,2.2151,167.03,167.02,5.52]
[1717216131350,2.2153,167.02,167.0,6.4993]
[1717216131545,2.2153,167.02,167.01,5.52]
[1717216133228,2.2153,167.02,166.96,37.60198434]
[1717216133643,2.2153,167.02,167.01,5.52]
[1717216135952,2.2152,167.03,167.01,5.52]
[1717216136153,2.2152,167.03,167.02,5.52]
[1717216141363,2.2152,167.03,166.96,37.60198434]
[1717216141656,2.2152,167.03,167.02,5.52]
[1717216142459,2.2153,167.02,166.96,37.60198434]
[1717216142963,2.2153,167.02,167.01,5.52]
[1717216143660,2.2153,167.02,166.96,37.60198434]
[1717216143965,2.2152,167.03,167.01,5.52]
[1717216144258,2.2153,167.02,167.01,5.52]
[1717216148761,4.4295,167.07,166.96,37.60198434]
[1717216148762,2.2155,167.01,166.96,37.60198434]
[1717216148948,2.2155,167.01,167.0,5.52]
[1717216149664,2.2155,167.01,166.99,5.52]
[1717216150266,2.2155,167.0,166.99,5.52]
[1717216151567,2.2154,167.01,166.99,5.52]
[1717216151868,2.2154,167.01,167.0,5.52]
[1717216153080,2.2154,167.01,166.96,28.6101]
[1717216160165,2.2154,167.01,166.96,22.08]
[1717216160355,2.2154,167.01,167.0,5.52]
[1717216160556,2.2153,167.02,167.0,5.52]
[1717216160758,2.2153,167.02,167.01,5.52]
[1717216171363,2.2153,167.02,166.97,6.3068]
[1717216171364,2.2154,167.01,166.98,6.2058]
[1717216171564,2.2154,167.01,167.0,5.52]
[1717216175570,4.4295,167.06,167.0,5.52]
[1717216175769,4.4295,167.06,167.04,5.52]
[1717216175964,2.2149,167.05,167.04,5.52]
[1717216203017,11.2421,167.09,167.04,5.52]
[1717216203220,4.429,167.08,167.05,5.52]
[1717216204411,2.2147,167.06,167.05,5.52]
[1717216204812,13.2872,167.08,167.04,5.52]
[1717216206505,2.2149,167.05,167.04,5.52]
[1717216209221,2.215,167.04,167.03,5.52]
[1717216211123,2.215,167.04,166.98,6.2058]
[1717216211124,15.87426157,167.08,166.98,6.2058]
[1717216211420,2.92706157,167.07,167.02,5.52]
[1717216212321,2.92706157,167.07,166.98,6.2058]
[1717216212506,2.2151,167.03,167.02,5.52]
[1717216213104,2.215,167.04,167.02,5.52]
[1717216213423,2.92706157,167.07,167.02,5.52]
[1717216213624,7.01666157,167.06,166.98,6.2058]
[1717216213799,6.6447,167.05,166.95,8.99184683]
[1717216214007,2.2157,166.99,166.95,8.99184683]
[1717216214527,2.216,166.97,166.95,8.99184683]
[1717216214915,2.216,166.97,166.96,5.52]
[1717216215518,2.216,166.97,166.95,8.99184683]
[1717216215824,2.216,166.97,166.96,5.52]
[1717216217431,2.216,166.97,166.94,8.99184683]
[1717216217613,2.216,166.97,166.96,5.52]
[1717216218218,2.2158,166.98,166.96,5.52]
[1717216219520,2.2158,166.98,166.97,5.52]
[1717216222924,2.2158,166.98,166.94,8.9932657]
[1717216222925,2.216,166.97,166.94,8.9932657]
[1717216223265,2.216,166.97,166.96,5.52]
[1717216223554,2.216,166.97,166.95,5.52]
[1717216227620,2.216,166.97,166.96,5.52]
[1717216237731,2.2158,166.98,166.96,5.52]
[1717216237953,2.2158,166.98,166.97,5.52]
[1717216243459,2.2158,166.98,166.94,8.99347647]
[1717216243659,2.2158,166.98,166.97,5.52]
[1717216260788,2.216,166.97,166.96,5.52]
[1717216262282,2.2158,166.98,166.96,5.52]
[1717216262573,2.2158,166.98,166.97,5.52]
[1717216264378,2.216,166.97,166.95,8.99347794]
[1717216264677,2.216,166.97,166.96,5.52]
[1717216266682,2.216,166.97,166.95,14.51347794]
[1717216267966,2.216,166.97,166.96,5.52]
[1717216271278,2.2159,166.97,166.95,8.99350548]
[1717216271482,2.2159,166.97,166.96,5.52]
[1717216272282,2.2158,166.98,166.96,5.52]
[1717216273186,2.2159,166.97,166.95,8.99348151]
[1717216273397,2.2159,166.97,166.96,5.52]
[1717216274173,6.6481,166.96,166.95,8.99348151]
[1717216274376,6.6481,166.96,166.94,8.99348151]
[1717216274377,2.2162,166.95,166.94,8.99348151]
[1717216274579,4.80326157,166.95,166.94,8.99348151]
[1717216276371,2.2162,166.95,166.94,8.99348151]
[1717216276785,4.4315,166.99,166.94,20.20815647]
[1717216276986,4.4315,166.99,166.95,5.52]
[1717216278488,2.2161,166.96,166.95,5.52]
[1717216286478,2.2161,166.96,166.95,11.8305]
[1717216286999,2.2159,166.98,166.95,5.52]
[1717216287200,2.2159,166.98,166.97,5.52]
[1717216287383,2.2157,166.99,166.98,6.3105]
[1717216287701,2.2157,166.99,166.98,11.8305]
[1717216288681,2.2155,167.0,166.98,11.8305]
[1717216288889,2.2155,167.0,166.99,5.52]
[1717216295705,4.43,167.05,166.99,5.52]
[1717216296002,2.2154,167.01,167.0,6.3105]
[1717216296219,2.2153,167.02,167.0,11.8305]
[1717216296505,2.2153,167.02,167.01,5.52]
[1717216297999,2.2153,167.02,167.01,11.8305]
[1717216300913,2.2151,167.03,167.01,11.8305]
[1717216301109,2.2151,167.03,167.02,5.52]
[1717216304519,2.215,167.04,167.02,5.52]
[1717216304815,2.215,167.04,167.03,5.52]
[1717216306705,2.2152,167.03,167.02,5.52]
[1717216307003,2.58706157,167.07,166.94,15.53063906]
[1717216307004,2.2156,167.0,166.94,15.53063906]
[1717216307191,2.2156,167.0,166.99,5.52]
[1717216314830,2.2154,167.01,166.99,5.52]
[1717216315004,2.2154,167.01,167.0,5.52]
[1717216316337,2.2153,167.02,167.0,5.52]
[1717216316504,2.2153,167.02,167.01,5.52]
[1717216361333,2.2152,167.03,167.01,5.52]
[1717216361533,2.2152,167.03,167.02,5.52]
[1717216366470,4.4284,167.11,167.02,5.52]
[1717216366638,2.2147,167.06,167.02,6.2909]
[1717216366836,2.2149,167.05,167.02,6.2909]
[1717216367037,2.2149,167.05,167.04,5.52]
[1717216368666,2.2148,167.06,167.04,5.52]
[1717216371272,2.2146,167.07,167.04,5.52]
[1717216376468,2.2147,167.06,167.04,5.52]
[1717216379580,2.2147,167.06,166.99,21.4962]
[1717216379767,2.2147,167.06,167.05,5.52]
[1717216383947,2.2145,167.08,167.05,5.52]
[1717216384270,2.2145,167.08,167.07,5.52]
[1717216390479,2.2145,167.08,167.01,6.3763]
[1717216390681,2.2146,167.07,167.04,28.4563]
[1717216390876,2.2146,167.07,167.06,5.52]
[1717216392980,2.2146,167.07,167.06,11.8963]
[1717216400000,2.2146,167.07,167.04,22.08]
[1717216400174,2.2146,167.07,167.04,28.4563]
[1717216400374,2.2146,167.07,167.05,6.3763]
[1717216411986,2.2146,167.07,167.04,22.08]
[1717216413193,2.2146,167.07,167.04,28.3234]
[1717216417990,2.2142,167.1,167.07,6.2434]
[1717216418192,2.2142,167.1,167.09,5.52]
[1717216418397,2.2141,167.11,167.09,5.52]
[1717216418602,2.2141,167.11,167.1,5.52]
[1717216421103,2.2141,167.11,167.07,6.2434]
[1717216421401,2.2141,167.11,167.1,5.52]
[1717216423309,2.2139,167.12,167.1,5.52]
[1717216424683,2.2138,167.13,167.1,5.52]
[1717216426609,10.78753445,167.12,167.1,5.52]
[1717216429208,13.00153445,167.12,167.11,5.52]
[1717216429402,2.214,167.12,167.11,5.52]
[1717216429988,13.00153445,167.12,167.11,5.52]
[1717216430710,2.214,167.12,167.07,6.2434]
[1717216430910,2.214,167.12,167.11,5.52]
[1717216431494,13.00153445,167.12,167.11,5.52]
[1717216431700,2.214,167.12,167.11,5.52]
[1717216432401,10.78753445,167.12,167.11,5.52]
[1717216432908,10.78753445,167.13,167.11,5.52]
[1717216433089,10.78753445,167.12,167.07,6.2434]
[1717216433292,10.78753445,167.12,167.11,5.52]
[1717216433731,10.78773225,167.12,167.11,5.52]
[1717216436116,10.78773225,167.12,167.07,6.2434]
[1717216436302,10.78773225,167.12,167.11,5.52]
[1717216439012,2.2138,167.13,167.11,5.52]
[1717216439193,2.2138,167.13,167.07,6.2434]
[1717216439194,10.78773043,167.12,167.07,6.2434]
[1717216439507,10.78773043,167.12,167.11,5.52]
[1717216441203,13.00163043,167.12,167.11,5.52]
[1717216441915,2.2139,167.12,167.11,5.52]
[1717216442114,2.2138,167.13,167.11,5.52]
[1717216442294,2.2138,167.13,167.12,5.52]
[1717216442495,13.00152185,167.13,167.12,5.52]
[1717216445615,13.00152185,167.13,167.07,6.2434]
[1717216445799,2.2138,167.13,167.12,5.52]
[1717216446003,13.00152144,167.13,167.12,5.52]
[1717216448016,10.78772144,167.13,167.12,5.52]
[1717216448916,10.78725737,167.13,167.07,6.2434]
[1717216449115,10.78725737,167.13,167.12,5.52]
[1717216449310,2.2137,167.14,167.12,5.52]
[1717216449606,2.2137,167.14,167.13,5.52]
[1717216453627,2.2137,167.14,167.07,6.2434]
[1717216453810,2.2137,167.14,167.13,5.52]
[1717216455529,2.2136,167.15,167.13,5.52]
[1717216455731,2.2136,167.15,167.14,5.52]
[1717216456707,2.2136,167.15,167.07,6.2434]
[1717216456910,10.78725737,167.16,167.12,5.52]
[1717216457131,11.12725737,167.17,167.07,6.2434]
[1717216457323,11.12725737,167.17,167.12,5.52]
[1717216457633,2.2139,167.13,167.12,5.52]
[1717216458528,10.78725737,167.16,167.07,6.2434]
[1717216458529,2.214,167.12,167.07,6.2434]
[1717216458735,2.214,167.12,167.11,5.52]
[1717216458939,2.214,167.12,167.07,6.2434]
[1717216459417,2.214,167.12,167.11,5.52]
[1717216459619,2.214,167.12,167.1,5.52]
[1717216460127,13.00125737,167.12,167.1,5.52]
[1717216460330,2.214,167.12,167.1,5.52]
[1717216460727,2.214,167.12,167.11,5.52]
[1717216462035,13.00125737,167.12,167.11,5.52]
[1717216462222,13.00125737,167.12,167.07,6.2434]
[1717216462223,2.214,167.12,167.07,6.2434]
[1717216462423,2.214,167.12,167.11,5.52]
[1717216462619,2.214,167.12,167.1,5.52]
[1717216466723,2.214,167.12,167.07,6.2434]
[1717216466923,2.214,167.12,167.1,5.52]
[1717216467243,4.80106157,167.12,167.04,38.5313]
[1717216467447,4.80106157,167.12,167.1,5.52]
[1717216467746,10.78725737,167.11,167.1,5.52]
[1717216467950,10.78725737,167.11,167.04,38.5313]
[1717216468134,2.214,167.12,167.1,5.52]
[1717216468522,13.00125737,167.12,167.1,5.52]
[1717216468723,13.00125737,167.12,167.04,38.5313]
[1717216468943,13.00125737,167.12,167.1,5.52]
[1717216469645,2.214,167.12,167.1,5.52]
[1717216470032,13.00125737,167.12,167.1,5.52]
[1717216470228,10.78725737,167.11,167.1,5.52]
[1717216470421,2.214,167.12,167.1,5.52]
[1717216470422,13.00125737,167.12,167.1,5.52]
[1717216470735,2.214,167.12,167.1,5.52]
[1717216471225,13.00125737,167.12,167.1,5.52]
[1717216471737,2.214,167.12,167.1,5.52]
[1717216478049,2.214,167.12,167.11,5.52]
[1717216481936,2.2138,167.13,167.11,5.52]
[1717216482154,2.2138,167.13,167.04,38.5313]
[1717216482353,2.2138,167.13,167.11,5.52]
[1717216485651,10.78725737,167.15,167.11,5.52]
[1717216485851,2.2139,167.12,167.11,5.52]
[1717216490165,2.2139,167.12,167.04,38.5313]
[1717216490353,2.2139,167.12,167.11,5.52]
[1717216491642,2.2141,167.11,167.09,5.52]
[1717216492552,13.00135737,167.11,167.09,5.52]
[1717216492964,2.2141,167.11,167.09,5.52]
[1717216497773,13.00115737,167.12,167.1,5.52]
[1717216497965,2.2138,167.13,167.11,5.52]
[1717216498166,2.2138,167.13,167.12,5.52]
[1717216499572,13.00174524,167.13,167.12,5.52]
[1717216500559,2.2138,167.13,167.12,5.52]
[1717216501176,13.00174524,167.13,167.12,5.52]
[1717216501776,13.00128479,167.13,167.12,5.52]
[1717216502070,2.2138,167.13,167.12,5.52]
[1717216502573,2.2137,167.14,167.12,5.52]
[1717216502755,2.2137,167.14,167.13,5.52]
[1717216504073,13.00118479,167.14,167.13,5.52]
[1717216504256,2.2137,167.14,167.13,5.52]
[1717216512681,2.2137,167.14,167.08,6.4235]
[1717216512863,2.2137,167.14,167.13,5.52]
[1717216514674,13.00094513,167.14,167.13,5.52]
[1717216515069,2.2137,167.14,167.13,5.52]
[1717216516266,2.2137,167.14,167.08,22.2465]
[1717216516481,2.2137,167.14,167.13,5.52]
[1717216516680,2.2138,167.13,167.09,6.4235]
[1717216516982,2.2138,167.13,167.12,5.52]
[1717216518885,2.2138,167.13,167.09,6.4235]
[1717216519068,2.2138,167.13,167.12,5.52]
[1717216519986,2.2137,167.14,167.12,11.9435]
[1717216520177,2.2137,167.14,167.13,5.52]
[1717216525594,2.2137,167.14,167.08,22.2465]
[1717216525798,2.2138,167.13,167.08,22.2465]
[1717216525977,13.00104513,167.13,167.12,5.52]
[1717216526394,2.2138,167.13,167.12,5.52]
[1717216527196,2.2137,167.14,167.12,5.52]
[1717216527697,2.2137,167.14,167.13,5.52]
[1717216528395,10.78724513,167.18,167.13,5.52]
[1717216528584,10.78724513,167.18,167.08,22.2465]
[1717216528585,2.2136,167.15,167.08,22.2465]
[1717216528784,2.2136,167.15,167.14,5.52]
[1717216531019,2.2136,167.15,167.13,5.52]
[1717216531513,2.2136,167.15,167.14,5.52]
[1717216533700,2.2137,167.14,167.08,22.2465]
[1717216533905,2.2137,167.14,167.13,5.52]
[1717216534093,2.2136,167.15,167.13,5.52]
[1717216534415,13.00084513,167.15,167.13,5.52]
[1717216534582,2.2136,167.15,167.13,5.52]
[1717216536615,2.2137,167.14,167.08,22.2465]
[1717216537092,2.2137,167.14,167.13,5.52]
[1717216540629,2.2137,167.14,167.08,22.2465]
[1717216540798,2.2137,167.14,167.13,5.52]
[1717216541718,2.2137,167.14,167.08,22.2465]
[1717216541929,2.2137,167.14,167.13,5.52]
[1717216542433,10.78700931,167.18,167.13,5.52]
[1717216542434,2.2136,167.15,167.13,5.52]
[1717216542600,2.2136,167.15,167.14,5.52]
[1717216547922,2.2134,167.16,167.14,5.52]
[1717216548099,2.2134,167.16,167.15,5.52]
[1717216549227,13.00040602,167.16,167.15,5.52]
[1717216550198,13.00040602,167.16,167.12,28.694]
[1717216550610,10.78700602,167.15,167.12,28.694]
[1717216551628,10.78700602,167.15,167.12,22.08]
[1717216551932,10.78700602,167.15,167.12,28.694]
[1717216552104,10.78700602,167.15,167.13,6.614]
[1717216553012,10.78700602,167.14,167.13,6.614]
[1717216553212,10.78700602,167.16,167.13,6.614]
[1717216553541,10.78700602,167.15,167.13,6.614]
[1717216553724,10.78700602,167.15,167.14,6.614]
[1717216554026,10.78700602,167.16,167.14,12.134]
[1717216555733,10.78700602,167.16,167.15,5.52]
[1717216556215,13.00040602,167.16,167.15,5.52]
[1717216556418,2.2134,167.16,167.15,5.52]
[1717216557524,2.2134,167.16,167.1,6.614]
[1717216557706,2.2134,167.16,167.15,5.52]
[1717216563429,2.2134,167.16,167.12,28.7389]
[1717216563631,2.2134,167.16,167.15,5.52]
[1717216567833,11.94111741,167.19,167.15,5.52]
[1717216568037,2.2132,167.18,167.12,28.7389]
[1717216568236,2.2133,167.17,167.13,16.3505]
[1717216568534,2.2133,167.17,167.16,5.52]
[1717216573139,2.2131,167.18,167.16,5.52]
[1717216574130,2.2131,167.18,167.17,5.52]
[1717216575442,9.72769892,167.21,167.18,6.6589]
[1717216575625,11.2571,167.31,167.18,6.6589]
[1717216575626,2.2123,167.25,167.2,11.04]
[1717216575822,9.03821729,167.27,167.24,5.52]
[1717216576032,2.2123,167.25,167.2,5.52]
[1717216576231,2.2123,167.25,167.24,5.52]
[1717216578431,9.04428561,167.29,167.24,5.52]
[1717216578746,9.04429807,167.28,167.27,5.52]
[1717216579069,2.2118,167.28,167.27,5.52]
[1717216580251,11.25616672,167.28,167.27,5.52]
[1717216580445,2.2118,167.28,167.27,5.52]
[1717216580853,2.212,167.27,167.26,5.52]
[1717216581948,8.75636672,167.3,167.26,5.52]
[1717216582131,2.2119,167.28,167.27,5.52]
[1717216587138,8.46826672,167.3,167.27,5.52]
[1717216587446,2.2122,167.26,167.23,5.52]
[1717216587647,2.2123,167.25,167.24,5.52]
[1717216588355,2.2123,167.24,167.23,5.52]
[1717216589456,2.2125,167.23,167.22,5.52]
[1717216590558,2.2124,167.24,167.22,5.52]
[1717216590762,2.2124,167.24,167.23,5.52]
[1717216596841,2.2121,167.26,167.23,11.8188]
[1717216597042,2.2121,167.26,167.25,5.52]
[1717216599256,2.2121,167.26,167.23,6.2988]
[1717216599654,2.2121,167.26,167.25,5.52]
[1717216600457,2.2121,167.26,167.23,6.2988]
[1717216600656,2.2121,167.26,167.25,5.52]
[1717216602864,2.2119,167.28,167.25,5.52]
[1717216603055,2.2119,167.28,167.27,5.52]
[1717216607773,2.212,167.27,167.26,5.52]
[1717216614377,2.2118,167.28,167.26,5.52]
[1717216616066,2.2118,167.28,167.27,5.52]
[1717216621283,2.2117,167.29,167.27,5.52]
[1717216621486,2.2117,167.29,167.28,5.52]
[1717216624577,4.4227,167.32,167.22,6.3368]
[1717216624773,9.17016928,167.31,167.27,5.52]
[1717216624984,8.83016928,167.31,167.28,5.52]
[1717216625192,2.2117,167.29,167.28,5.52]
[1717216625788,2.2118,167.28,167.22,6.3368]
[1717216625981,2.2118,167.28,167.27,5.52]
[1717216629897,2.212,167.27,167.25,5.52]
[1717216631094,2.212,167.27,167.26,5.52]
[1717216631902,2.212,167.27,167.21,6.0938]
[1717216632101,2.212,167.27,167.26,5.52]
[1717216632690,2.212,167.27,167.21,6.0938]
[1717216632889,2.2118,167.28,167.26,5.52]
[1717216633205,2.2118,167.28,167.27,5.52]
[1717216636186,2.2117,167.29,167.27,5.52]
[1717216636386,2.2117,167.29,167.28,5.52]
[1717216639314,2.2118,167.28,167.22,77.98]
[1717216639484,2.2118,167.28,167.27,5.52]
[1717216644199,2.2118,167.28,167.21,6.0938]
[1717216644404,2.212,167.27,167.21,6.0938]
[1717216644608,2.212,167.27,167.26,5.52]
[1717216645714,2.58706157,167.31,167.21,6.0938]
[1717216645715,2.2121,167.26,167.21,6.0938]
[1717216646105,2.2121,167.26,167.25,5.52]
[1717216646605,2.212,167.27,167.25,5.52]
[1717216646805,2.212,167.27,167.26,5.52]
[1717216647710,2.212,167.27,167.21,6.0938]
[1717216648111,2.212,167.27,167.26,5.52]
[1717216648317,2.212,167.27,167.21,6.0938]
[1717216648495,2.212,167.27,167.26,5.52]
[1717216648915,2.212,167.27,167.21,6.0938]
[1717216649617,2.212,167.27,167.26,5.52]
[1717216649999,2.212,167.27,167.21,6.0938]
[1717216650201,9.22146157,167.31,167.17,6.4576]
[1717216650418,2.2122,167.26,167.24,5.52]
[1717216650614,2.2122,167.25,167.2,22.08]
[1717216650915,2.2122,167.25,167.24,5.52]
[1717216651218,2.2122,167.25,167.17,6.4576]
[1717216651420,2.2122,167.25,167.24,5.52]
[1717216651816,2.2122,167.25,167.2,22.08]
[1717216652003,2.2122,167.25,167.24,5.52]
[1717216654713,2.2121,167.26,167.24,5.52]
[1717216654913,2.2121,167.26,167.25,5.52]
[1717216662328,2.212,167.27,167.25,5.52]
[1717216662530,2.212,167.27,167.26,5.52]
[1717216662829,2.2118,167.28,167.26,5.52]
[1717216663015,2.2118,167.28,167.27,5.52]
[1717216670438,2.2117,167.29,167.27,5.52]
[1717216670617,2.2117,167.29,167.28,5.52]
[1717216671337,8.83375722,167.32,167.28,5.52]
[1717216671631,2.2117,167.29,167.21,100.7502]
[1717216671821,2.2117,167.29,167.28,5.52]
[1717216673531,2.2115,167.31,167.28,5.52]
[1717216673711,8.83375722,167.32,167.3,5.52]
[1717216674418,8.83375722,167.32,167.31,5.52]
[1717216674811,11.04505722,167.32,167.31,5.52]
[1717216676214,2.2113,167.32,167.31,5.52]
[1717216682340,2.2116,167.3,167.22,18.32]
[1717216682638,2.2116,167.3,167.29,5.52]
[1717216684252,2.2116,167.3,167.27,6.0477]
[1717216684550,2.2116,167.3,167.29,5.52]
[1717216685224,2.2114,167.31,167.29,5.52]
[1717216685541,64.97123385,167.47,167.27,6.0477]
[1717216685542,2.2113,167.33,167.3,5.52]
[1717216685741,2.2113,167.33,167.32,5.52]
[1717216689353,2.2114,167.32,167.28,22.08]
[1717216689850,2.2114,167.32,167.31,5.52]
[1717216698358,2.2114,167.32,167.24,6.0477]
[1717216698556,2.2114,167.32,167.31,5.52]
[1717216701565,2.2112,167.33,167.31,5.52]
[1717216701868,2.2112,167.33,167.32,5.52]
[1717216703040,8.8426,167.38,167.32,5.52]
[1717216703243,8.8426,167.38,167.34,5.52]
[1717216704557,2.2109,167.35,167.34,5.52]
[1717216713268,2.2109,167.35,167.28,28.1277]
[1717216713444,2.2109,167.35,167.34,5.52]
[1717216720375,2.2108,167.36,167.34,5.52]
[1717216720675,5.1482584,167.39,167.35,5.52]
[1717216720676,2.2107,167.37,167.35,5.52]
[1717216720843,2.2107,167.37,167.36,5.52]
[1717216721668,2.2107,167.37,167.36,11.04]
[1717216721962,0.7272584,167.39,167.36,11.04]
[1717216722162,2.9376584,167.39,167.38,5.52]
[1717216734986,2.2105,167.38,167.31,15.8611]
[1717216735191,2.2105,167.38,167.37,5.52]
[1717216737693,0.7272584,167.39,167.31,15.8611]
[1717216737694,2.2108,167.36,167.31,22.0296]
[1717216737998,2.2108,167.36,167.35,5.52]
[1717216741774,2.2109,167.35,167.31,6.1685]
[1717216742076,2.2109,167.35,167.34,5.52]
[1717216742682,3.31431997,167.39,167.34,5.52]
[1717216742889,2.2108,167.36,167.35,5.52]
[1717216743576,2.2109,167.35,167.31,6.1685]
[1717216743875,2.2109,167.35,167.34,5.52]
[1717216744402,2.2108,167.36,167.34,5.52]
[1717216744784,2.2109,167.35,167.34,5.52]
[1717216746399,2.2108,167.36,167.34,5.52]
[1717216746705,2.2108,167.36,167.35,5.52]
[1717216747682,2.2108,167.36,167.34,5.52]
[1717216748197,2.2108,167.36,167.35,5.52]
[1717216750406,2.2109,167.35,167.28,22.08]
[1717216750599,2.2111,167.34,167.28,22.08]
[1717216750807,2.2111,167.34,167.33,5.52]
[1717216758403,2.2109,167.35,167.33,5.52]
[1717216758582,2.2109,167.35,167.34,5.52]
[1717216769101,2.2107,167.37,167.34,5.52]
[1717216769298,0.7272584,167.39,167.28,40.06]
[1717216769299,2.2108,167.36,167.28,40.06]
[1717216769503,2.2108,167.36,167.35,5.52]
[1717216776800,2.2108,167.36,167.3,22.8541]
[1717216777021,2.2108,167.36,167.35,5.52]
[1717216777404,2.2107,167.37,167.35,11.8349]
[1717216777726,2.2107,167.37,167.36,5.52]
[1717216777934,2.2107,167.37,167.36,17.3549]
[1717216778423,2.2107,167.37,167.36,11.8349]
[1717216779302,0.7272584,167.39,167.36,17.3549]
[1717216779507,2.9377584,167.39,167.38,5.52]
[1717216781328,2.2105,167.38,167.36,6.3149]
[1717216781629,2.2105,167.38,167.37,5.52]
[1717216782927,2.9376584,167.39,167.37,5.52]
[1717216783129,2.9376584,167.39,167.38,5.52]
[1717216786423,2.9376584,167.39,167.36,6.3149]
[1717216786623,2.9376584,167.39,167.38,5.52]
[1717216790234,0.7272584,167.39,167.38,5.52]
[1717216790421,0.7272584,167.39,167.38,11.6215]
[1717216794149,0.7272584,167.39,167.38,5.52]
[1717216801646,0.7272584,167.39,167.36,22.08]
[1717216801852,0.7272584,167.39,167.38,5.52]
[1717216803729,0.7272584,167.39,167.31,16.0956]
[1717216804033,2.2105,167.38,167.37,5.52]
[1717216804725,2.9376584,167.39,167.37,5.52]
[1717216805334,2.9376584,167.39,167.38,5.52]
[1717216805652,0.7272584,167.39,167.31,16.0956]
[1717216805948,0.7272584,167.39,167.38,5.52]
[1717216806151,2.9376584,167.39,167.31,16.0956]
[1717216806323,0.7272584,167.39,167.36,5.52]
[1717216806625,2.2106,167.38,167.36,5.52]
[1717216807732,2.2106,167.38,167.29,84.1967]
[1717216807733,2.2106,167.38,167.37,5.52]
[1717216811052,2.2106,167.38,167.29,84.1967]
[1717216811254,0.8972584,167.39,167.29,6.2167]
[1717216811549,2.2108,167.36,167.34,5.52]
[1717216812250,2.2109,167.35,167.34,5.52]